{"text_format":"1","workbook":"xlsx","n_sheets":5,"sheets":["Меню","Заявка на договор ТП юр лицо","Заявка на договор ТП для ИП","Заявка на договор ТП физлицо","Списки"],"not_rendered":{"charts":0,"images":0,"macros":0,"external_links":0,"defined_names":5,"comments":0,"pivot_tables":0},"unopened":[],"bounds":{"document_bytes":16777216,"sheet_cells":100000,"rows_first":2000,"rows_last":500,"rows_between":2000,"halvings":0,"cell_chars":16384,"cell_head_chars":4096},"cells_cut":0,"cells_raw":0,"read":"whole","date_system":"1900"}

{"sheet":"Меню","index":0,"n_rows":9,"n_cols":2,"rows_kept":9,"cut":false,"hidden":false,"merged":[]}
[]
[null,"Выберите нужный вариант:"]
[null,"Заключение Договора о подключении к системе теплоснабжения АО \"Теплосеть\""]
[null,"Форма заявки на подключение к системе теплоснабжения АО \"Теплосеть\" в случае если Вы:"]
[null,"Юридическое лицо"]
[]
[null,"Индивидуальный предприниматель"]
[]
[null,"Физическое лицо"]

{"sheet":"Заявка на договор ТП юр лицо","index":1,"n_rows":160,"n_cols":12,"rows_kept":160,"cut":false,"hidden":false,"merged":[[61,2,61,3],[17,1,17,10],[57,9,57,10],[10,13,11,13],[6,1,6,10],[1,6,1,10],[70,2,70,3],[70,4,70,5],[70,6,70,7],[70,9,70,10],[71,2,71,3],[71,4,71,5],[71,6,71,7],[71,9,71,10],[64,4,64,5],[64,6,64,7],[64,9,64,10],[64,2,64,3],[68,2,68,3],[68,4,68,5],[68,6,68,7],[68,9,68,10],[69,2,69,3],[69,4,69,5],[69,6,69,7],[69,9,69,10],[42,8,42,10],[32,7,32,8],[19,11,21,11],[21,2,21,10],[22,2,22,4],[22,6,22,10],[22,11,24,11],[23,3,23,4],[23,6,23,7],[24,9,24,10],[28,9,28,10],[25,2,25,7],[25,9,25,10],[27,2,27,7],[27,9,27,10],[19,1,19,10],[157,2,157,3],[157,9,157,10],[114,1,114,2],[118,1,121,10],[125,1,127,10],[131,1,134,10],[156,9,156,10],[151,2,151,9],[152,2,152,9],[142,2,142,9],[155,2,155,9],[140,2,140,9],[129,1,129,10],[153,2,153,9],[154,2,154,9],[147,2,147,9],[148,2,148,9],[149,2,149,9],[150,2,150,9],[136,1,136,10],[22,0,24,0],[100,1,100,3],[100,9,100,10],[52,2,52,10],[85,1,86,10],[98,1,98,2],[98,3,98,4],[99,1,99,2],[99,3,99,4],[73,1,73,10],[34,2,34,4],[34,6,34,10],[77,1,79,10],[92,1,94,10],[56,1,56,10],[61,6,61,7],[61,9,61,10],[62,2,62,3],[62,4,62,5],[38,2,38,10],[29,2,29,10],[90,1,90,10],[96,1,96,10],[54,3,54,4],[146,2,146,9],[98,5,98,10],[99,5,99,10],[104,1,106,10],[110,2,110,3],[110,6,110,8],[143,2,143,9],[144,2,144,9],[145,2,145,9],[141,2,141,9],[102,1,102,10],[116,1,116,10],[87,1,87,10],[48,2,48,5],[63,6,63,7],[63,9,63,10],[40,2,40,4],[32,2,32,3],[36,2,36,4],[36,6,36,10],[10,1,10,10],[44,1,44,4],[45,2,45,10],[59,9,59,10],[48,7,48,10],[11,1,11,10],[12,1,12,10],[62,6,62,7],[62,9,62,10],[63,2,63,3],[63,4,63,5],[42,2,42,4],[61,4,61,5],[26,2,26,7],[30,2,30,10],[40,8,40,10]]}
[]
[null,null,null,null,null,null,"Генеральному директору АО \"Теплосеть\"\n"]
[]
[]
[]
[]
[null,"ЗАЯВКА НА ПОДКЛЮЧЕНИЕ К СИСТЕМЕ ТЕПЛОСНАБЖЕНИЯ АО \"ТЕПЛОСЕТЬ\""]
[null,null,null,null,"(для юридического лица)"]
[]
[]
[null,"Прошу Вас заключить договор о подключении к системе теплоснабжения АО \"Теплосеть\" объекта капитального строительства: "]
[]
[null,"(наименование объекта)"]
[null,"в связи с: ",null,null,null,null,null,null,null,null,null,"Необходимо выбрать нужный вариант"]
[null,"    необходимостью подключения нового объекта"]
[null,"    увеличением тепловой нагрузки или тепловой мощности подключаемого объекта"]
[null,"    реконструкцией или модернизацией объекта без увеличения тепловой нагрузки или тепловой мощности"]
[null,"    необходимостью подключения к иной системе ранее подключенных потребителей по причине вывода из эксплуатации источника тепловой энергии, тепловых сетей согласно схеме теплоснабжения или в порядке, установленном законодательством РФ\n"]
[]
[null,"1. Сведения о заявителе:"]
[]
[null,"Полное наименование организации"]
[]
[null,"Запись о включении в ЕГРЮЛ (ОГРН)","от",null,null,"№"]
[]
[null,"Ф.И.О. уполномоченного органа (представителя)"]
[null,null,"*В данной графе указываются лица, имеющие право действовать от имени Общества на основании доверенности, либо без доверенности на основании учредительных документов."]
[null,"Документ, подтверждающий полномочия представителя"]
[]
[null,"Адрес места нахождения"]
[null,null,"** Место нахождения юридического лица определяется местом его государственной регистрации на территории Российской Федерации. Юридическое лицо несет риск последствий неполучения юридически значимых сообщений, доставленных по адресу, указанному в ЕГРЮЛ. Сообщения, доставленные по адресу, указанному в ЕГРЮЛ, считаются полученными юридическим лицом, даже если оно не находится по указанному адресу."]
[]
[null,"ИНН",null,null,"КПП",null,"ОКПО"]
[]
[null,"р/с",null,null,null,"в"]
[]
[null,"К/С (Л/С для бюджетных организаций)",null,null,null,"БИК"]
[]
[null,"Контактное лицо (Ф.И.О.)"]
[]
[null,"Основной телефон ",null,null,null,null,null,"Дополнительный телефон"]
[]
[null,"Основной e-mail",null,null,null,null,null,"Дополнительный e-mail"]
[]
[null,"Уведомить меня по основным контактным данным ",null,null,null,"Да",null,"Нет",null,null,null,"Необходимо выбрать нужный вариант"]
[null,null,"*** В случае если Заявитель будет недоступен по вышеуказанному контакту, Технические условия подключения будут отправлены почтой по  адресу, указанному в Разделе 1 настоящего Запроса"]
[null,"2. Местонахождение подключаемого объекта:"]
[]
[null,"Город",null,null,null,null,"Район"]
[]
[]
[]
[null,"Улица"]
[]
[null,"Дом"]
[]
[null,"3. Технические параметры подключаемого объекта:"]
[null,"3.1 Таблица тепловых нагрузок по видам потребления "]
[null,"(Заполняется одна из двух таблиц)"]
[null,"Для неподключенных строящихся (построенных) объектов:",null,null,null,null,null,null,{"$f":"J63","v":0},"поле считается автоматически"]
[]
[null,"Наименование","Отопление",null,"Вентиляция",null,"ГВС ",null,"Прочее","Всего "]
[null,"Тепловая нагрузка, Гкал / час",0,null,0,null,0,null,0,{"$f":"C63+E63+G63+I63","v":0}]
[]
[]
[]
[null,"Для реконструируемых объектов:"]
[]
[null,"Наименование","Отопление",null,"Вентиляция",null,"ГВС ",null,"Прочее","Всего "]
[null,"Тепловая нагрузка существующая, Гкал / час",0,null,0,null,0,null,0,{"$f":"C70+E70+G70+I70","v":0}]
[null,"Тепловая нагрузка после реконструкции, Гкал / час",0,null,0,null,0,null,0,{"$f":"C71+E71+G71+I71","v":0}]
[null,"Тепловая нагрузка дополнительная, Гкал / час",{"$f":"C71-C70","v":0},null,{"$f":"E71-E70","v":0},null,{"$f":"G71-G70","v":0},null,{"$f":"I71-I70","v":0},0,null,"Считается как разница между Тепловая нагрузка после реконструкции и Тепловая нагрузка существующая"]
[]
[null,"ВАЖНО: Если в рамках заявки на подключение планируется заключение договора о подключении нескольких объектов капитального строительства, то заявка должна содержать в себе таблицы нагрузок по каждому объекту."]
[]
[null,"3.2 Режимы теплопотребления для подключаемого объекта:"]
[]
[null,null,null,null,null,null,null,null,null,null,null,"Необходимо выбрать из выпадающего списка"]
[]
[]
[null,"Если нужного варианта режима в списке нет, укажите собственный вариант"]
[]
[]
[null,"3.3 Расположение узла учета тепловой энергии ",null,null,null,null,null,null,null,null,null,"Обязательно к заполнению!"]
[]
[]
[]
[null,"Я хочу вместе с проектом Договора о подключении получить Технические условия на организацию учета тепловой энергии, теплоносителя:"]
[null,null,null,null,"Да",null,"Нет"]
[]
[null,"3.4 Требования к надежности теплоснабжения подключаемого объекта (допустимые перерывы в подаче теплоносителей  по продолжительности, периодам годам и др.)"]
[]
[null,null,null,null,null,null,null,null,null,null,null,"Необходимо выбрать из выпадающего списка"]
[]
[]
[]
[null,"3.5 Наличие и возможность использования собственных источников тепловой энергии (с указанием их мощностей и режимов работы)",null,null,null,null,null,null,null,null,null,"Обязательно к заполнению!"]
[]
[null,"Наименование источника тепловой энергии",null,"Тепловая мощность,\nГкал / час",null,"Режим работы"]
[]
[]
[]
[null,"4. Правовые основания пользования подключаемым объектом или земельным участком, на котором расположен подключаемый объект:"]
[]
[]
[null,null,null,null,null,null,null,null,null,null,null,"Обязательно к заполнению!"]
[]
[]
[null,"5. Технические условия (если ранее выдавались):"]
[]
[null,"от",null,null,null,"№"]
[]
[null,"6. Планируемый срок ввода объекта в эксплуатацию:"]
[]
[null,null,null,null,null,null,null,null,null,null,null,"Обязательно к заполнению!"]
[]
[null,"7. Информация о границах земельного участка, на котором планируется осуществить строительство / реконструкцию / модернизацию подключаемого объекта (содержится в ГПЗУ):"]
[]
[null,null,null,null,null,null,null,null,null,null,null,"Обязательно к заполнению!"]
[]
[]
[]
[]
[null,"8. Информация о виде разрешенного использования земельного участка (содержится в ГПЗУ):"]
[]
[null,null,null,null,null,null,null,null,null,null,null,"Обязательно к заполнению!"]
[]
[]
[]
[null,"9. Информация о предельных параметрах разрешенного строительства / реконструкции / модернизации подключаемого объекта (содержится в ГПЗУ):"]
[]
[null,null,null,null,null,null,null,null,null,null,null,"Обязательно к заполнению!"]
[]
[]
[]
[]
[null,"Я, действуя своей волей и в своем интересе, в соответствии со ст. 9 Федерального закона от 27 июля 2006 г. № 152-ФЗ «О персональных данных» даю согласие на обработку моих персональных данных, в целях осуществления договорных отношений в рамках законодательства РФ в сфере теплоснабжения.",null,null,null,null,null,null,null,null,null,"Обязательно к заполнению!"]
[null,null,null,null,"Да",null,"Нет"]
[]
[]
[null,null,"Перечень необходимых документов для заключения Договора о подключении к системе теплоснабжения АО \"Теплосеть\""]
[null,1,"Заверенные копии учредительных документов:"]
[null,"-","устав юридического лица (в том числе все изменения и дополнения к нему);"]
[null,"-","свидетельство о государственной регистрации юридического лица;"]
[null,"-","свидетельство о внесении записи в единый государственный реестр юридических лиц о юридическом лице (далее – ЕГРЮЛ), зарегистрированном до 01.07.2002, в случае создания контрагента до 01.07.2002;"]
[null,"-","свидетельство о постановке юридического лица на учет в налоговом органе;"]
[null,"-","выписка из ЕГРЮЛ. Дата выдачи выписки из ЕГРИП не должна превышать 30 дней на дату представления;"]
[null,"-","документы, подтверждающие полномочия лица, действующего от имени заявителя."]
[null,2,"Документы, подтверждающие полномочия лица, подписавшего запрос:"]
[null,"-","документ о назначении руководителя юридического лица;"]
[null,"-","приказ о вступлении в должность руководителя юридического лица;"]
[null,"-","доверенность представителя контрагента на право подписания запроса (в случае подписания запроса лицом, действующим на основании доверенности)."]
[null,3,"Копии правоустанавливающих документов, подтверждающих право собственности или иное законное право заявителя на подключаемый объект или земельный участок, права на которые не зарегистрированы в Едином государственном реестре прав на недвижимое имущество и сделок с ним (в случае если такие права зарегистрированы в указанном реестре, представляются копии свидетельств о государственной регистрации прав на указанный подключаемый объект или земельный участок)."]
[null,4,"Ситуационный план расположения подключаемого объекта с привязкой к территории населенного пункта или элементам территориального деления в схеме теплоснабжения."]
[null,5,"Топографическая карта земельного участка в масштабе 1:500 (для квартальной застройки 1:2000) в электронном виде в фрмате PDF с указанием всех наземных и подземных коммуникаций и сооружений."]
[null,6,"Правовые основания пользования заявителем подключаемым объектом и земельным участком, на котором планируется создание подключаемого объект."]
[null,"Заявитель"]
[null,null,"ФИО",null,null,null,"Подпись",null,null,"Дата"]
[]
[null,"М.П."]

{"sheet":"Заявка на договор ТП для ИП","index":2,"n_rows":147,"n_cols":12,"rows_kept":147,"cut":false,"hidden":false,"merged":[[67,2,67,3],[67,4,67,5],[67,6,67,7],[67,9,67,10],[68,2,68,3],[68,4,68,5],[68,6,68,7],[68,9,68,10],[69,2,69,3],[69,4,69,5],[69,6,69,7],[69,9,69,10],[61,9,61,10],[62,2,62,3],[62,4,62,5],[62,6,62,7],[62,9,62,10],[66,2,66,3],[66,4,66,5],[66,6,66,7],[66,9,66,10],[1,6,1,10],[17,11,19,11],[19,2,19,10],[20,0,22,0],[20,2,20,4],[20,6,20,10],[20,11,22,11],[21,3,21,4],[21,6,21,7],[22,9,22,10],[8,1,8,10],[9,1,9,10],[17,1,17,10],[10,1,10,10],[4,1,4,10],[15,1,15,10],[30,2,30,3],[30,7,30,8],[23,2,23,7],[23,9,23,10],[25,2,25,7],[25,9,25,10],[26,9,26,10],[27,2,27,10],[24,2,24,7],[28,2,28,10],[32,2,32,4],[32,6,32,10],[34,2,34,4],[34,6,34,10],[36,2,36,10],[38,2,38,4],[38,8,38,10],[40,8,40,10],[42,1,42,4],[50,2,50,10],[54,1,54,10],[55,9,55,10],[71,1,71,10],[75,1,76,10],[93,1,93,10],[85,1,85,10],[40,2,40,4],[46,2,46,5],[46,7,46,10],[43,2,43,10],[57,9,57,10],[59,2,59,3],[59,4,59,5],[59,6,59,7],[59,9,59,10],[60,2,60,3],[60,4,60,5],[60,6,60,7],[60,9,60,10],[61,2,61,3],[61,4,61,5],[82,1,84,10],[61,6,61,7],[96,1,96,2],[96,3,96,4],[96,5,96,10],[97,1,97,2],[97,3,97,4],[97,5,97,10],[88,1,88,10],[90,1,91,10],[95,1,95,2],[95,3,95,4],[95,5,95,10],[99,1,99,3],[99,9,99,10],[98,1,98,2],[98,3,98,4],[98,5,98,10],[133,2,133,9],[134,2,134,9],[135,2,135,9],[116,1,117,10],[121,1,122,10],[124,1,124,10],[126,1,127,10],[101,1,101,10],[103,1,104,10],[108,2,108,3],[108,6,108,8],[112,1,112,2],[114,1,114,10],[130,1,130,10],[143,9,143,10],[144,2,144,3],[144,9,144,10],[142,2,142,9],[139,2,139,9],[140,2,140,9],[141,2,141,9],[136,2,136,9],[137,2,137,9],[138,2,138,9]]}
[]
[null,null,null,null,null,null,"Генеральному директору АО \"Теплосеть\"\n"]
[]
[]
[null,"ЗАЯВКА НА ПОДКЛЮЧЕНИЕ К СИСТЕМЕ ТЕПЛОСНАБЖЕНИЯ АО \"ТЕПЛОСЕТЬ\""]
[null,null,null,null,"(для индивидуального предпринимателя)"]
[]
[]
[null,"Прошу Вас заключить договор о подключении к системе теплоснабжения АО \"Теплосеть\" объекта капитального строительства: "]
[]
[null,"(наименование объекта)"]
[null,"в связи с: ",null,null,null,null,null,null,null,null,null,"Необходимо выбрать нужный вариант"]
[null,"    необходимостью подключения нового объекта"]
[null,"    увеличением тепловой нагрузки или тепловой мощности подключаемого объекта"]
[null,"    реконструкцией или модернизацией объекта без увеличения тепловой нагрузки или тепловой мощности"]
[null,"    необходимостью подключения к иной системе ранее подключенных потребителей по причине вывода из эксплуатации источника тепловой энергии, тепловых сетей согласно схеме теплоснабжения или в порядке, установленном законодательством РФ"]
[]
[null,"1. Сведения о заявителе:"]
[]
[null,"Ф.И.О. индивидуального предпринимателя"]
[]
[null,"Запись о включении в ЕГРИП (ОГРНИП)","от",null,null,"№"]
[]
[null,"Ф.И.О. представителя (уполномоченного лица)"]
[null,null,"*В данной графе указываются лица, имеющие право действовать от имени ИП на основании доверенности."]
[null,"Документ, подтверждающий полномочия представителя"]
[]
[null,"Адрес регистрации по месту жительства"]
[null,null,"Индекс, город, улица, дом, строение, корпус, владение"]
[]
[null,"ИНН",null,null,"КПП",null,"ОКПО"]
[]
[null,"р/с",null,null,null,"в"]
[]
[null,"к/с",null,null,null,"БИК"]
[]
[null,"Контактное лицо (Ф.И.О.)"]
[]
[null,"Основной телефон ",null,null,null,null,null,"Дополнительный телефон"]
[]
[null,"Основной e-mail",null,null,null,null,null,"Дополнительный e-mail"]
[]
[null,"Уведомить меня по основным контактным данным ",null,null,null,"Да",null,"Нет",null,null,null,"Необходимо выбрать нужный вариант"]
[null,null,"*** В случае если Заявитель будет недоступен по вышеуказанному контакту, Технические условия подключения будут отправлены почтой по  адресу, указанному в Разделе 1 настоящего Запроса"]
[null,"2. Местонахождение подключаемого объекта:"]
[]
[null,"Город",null,null,null,null,"Район"]
[]
[]
[]
[null,"Улица"]
[]
[null,"Дом"]
[]
[null,"3. Технические параметры подключаемого объекта:"]
[null,"3.1 Таблица тепловых нагрузок по видам потребления ",null,null,null,null,null,null,null,null,null,"Таблица заполняется одна из двух представленных"]
[null,"(Заполняется одна из двух таблиц)"]
[null,"Для неподключенных строящихся (построенных) объектов:",null,null,null,null,null,null,{"$f":"J61","v":0},"поле считается автоматически"]
[]
[null,"Наименование","Отопление",null,"Вентиляция",null,"ГВС ",null,"Прочее","Всего "]
[null,"Тепловая нагрузка, Гкал / час",0,null,0,null,0,null,0,{"$f":"C61+E61+G61+I61","v":0}]
[]
[]
[]
[null,"Для реконструируемых объектов:"]
[]
[null,"Наименование","Отопление",null,"Вентиляция",null,"ГВС ",null,"Прочее","Всего "]
[null,"Тепловая нагрузка существующая, Гкал / час",0,null,0,null,0,null,0,{"$f":"C68+E68+G68+I68","v":0}]
[null,"Тепловая нагрузка после реконструкции, Гкал / час",0,null,0,null,0,null,0,{"$f":"C69+E69+G69+I69","v":0}]
[null,"Тепловая нагрузка дополнительная, Гкал / час",{"$f":"C69-C68","v":0},null,{"$f":"E69-E68","v":0},null,{"$f":"G69-G68","v":0},null,{"$f":"I69-I68","v":0},0,null,"Считается как разница между Тепловая нагрузка после реконструкции и Тепловая нагрузка существующая"]
[]
[null,"ВАЖНО: Если в рамках заявки на подключение планируется заключение договора о подключении нескольких объектов капитального строительства, то заявка должна содержать в себе таблицы нагрузок по каждому объекту."]
[]
[null,"3.2 Режимы теплопотребления для подключаемого объекта:"]
[]
[null,null,null,null,null,null,null,null,null,null,null,"Необходимо выбрать из выпадающего списка"]
[]
[null,"Если нужного варианта режима в списке нет, укажите собственный вариант"]
[]
[]
[null,"3.3 Расположение узла учета тепловой энергии "]
[]
[]
[]
[]
[null,"Я хочу вместе с проектом Договора о подключении получить Технические условия на организацию учета тепловой энергии, теплоносителя:"]
[null,null,null,null,"Да",null,"Нет"]
[]
[null,"3.4 Требования к надежности теплоснабжения подключаемого объекта (допустимые перерывы в подаче теплоносителей  по продолжительности, периодам годам и др.)"]
[]
[null,null,null,null,null,null,null,null,null,null,null,"Необходимо выбрать из выпадающего списка"]
[]
[]
[null,"3.5 Наличие и возможность использования собственных источников тепловой энергии (с указанием их мощностей и режимов работы)"]
[]
[null,"Наименование источника тепловой энергии",null,"Тепловая мощность,\nГкал / час",null,"Режим работы"]
[]
[]
[]
[]
[]
[null,"4. Правовые основания пользования подключаемым объектом или земельным участком, на котором расположен подключаемый объект:"]
[]
[]
[]
[]
[null,"5. Технические условия (если ранее выдавались):"]
[]
[null,"от",null,null,null,"№"]
[]
[null,"6. Планируемый срок ввода объекта в эксплуатацию:"]
[]
[null,null,null,null,null,null,null,null,null,null,null,"Обязательно к заполнению!"]
[]
[null,"7. Информация о границах земельного участка, на котором планируется осуществить строительство / реконструкцию / модернизацию подключаемого объекта (содержится в ГПЗУ):"]
[]
[]
[null,null,null,null,null,null,null,null,null,null,null,"Обязательно к заполнению!"]
[]
[null,"8. Информация о виде разрешенного использования земельного участка (содержится в ГПЗУ):"]
[]
[]
[null,null,null,null,null,null,null,null,null,null,null,"Обязательно к заполнению!"]
[]
[null,"9. Информация о предельных параметрах разрешенного строительства / реконструкции / модернизации подключаемого объекта (содержится в ГПЗУ):"]
[]
[null,null,null,null,null,null,null,null,null,null,null,"Обязательно к заполнению!"]
[]
[]
[]
[null,"Я, действуя своей волей и в своем интересе, в соответствии со ст. 9 Федерального закона от 27 июля 2006 г. № 152-ФЗ «О персональных данных» даю согласие на обработку моих персональных данных, в целях осуществления договорных отношений в рамках законодательства РФ в сфере теплоснабжения.",null,null,null,null,null,null,null,null,null,"Обязательно к заполнению!"]
[null,null,null,null,"Да",null,"Нет"]
[]
[null,null,"Перечень необходимых документов для заключения Договора о подключении к системе теплоснабжения АО \"Теплосеть\""]
[null,1,"Заверенные копии учредительных документов:"]
[null,"-","свидетельство о государственной регистрации физического лица в качестве индивидуального предпринимателя;"]
[null,"-","свидетельство о постановке на учет в налоговом органе индивидуального предпринимателя;"]
[null,"-","выписка из единого государственного реестра индивидуальных предпринимателей (далее – ЕГРИП). Дата выдачи выписки из ЕГРИП не должна превышать 30 дней на дату представления."]
[null,2,"Доверенность представителя контрагента на право подписания запроса (в случае подписания запроса лицом, действующим на основании доверенности)."]
[null,3,"Копии правоустанавливающих документов, подтверждающих право собственности или иное законное право заявителя на подключаемый объект или земельный участок, права на которые не зарегистрированы в Едином государственном реестре прав на недвижимое имущество и сделок с ним (в случае если такие права зарегистрированы в указанном реестре, представляются копии свидетельств о государственной регистрации прав на указанный подключаемый объект или земельный участок)."]
[null,4,"Ситуационный план расположения подключаемого объекта с привязкой к территории населенного пункта или элементам территориального деления в схеме теплоснабжения."]
[null,5,"Топографическая карта земельного участка в масштабе 1:500 (для квартальной застройки 1:2000) в электронном виде в фрмате PDF с указанием всех наземных и подземных коммуникаций и сооружений."]
[null,6,"Правовые основания пользования заявителем подключаемым объектом и земельным участком, на котором планируется создание подключаемого объект."]
[null,"Заявитель"]
[null,null,"ФИО",null,null,null,"Подпись",null,null,"Дата"]
[]
[null,"М.П."]

{"sheet":"Заявка на договор ТП физлицо","index":3,"n_rows":147,"n_cols":12,"rows_kept":147,"cut":false,"hidden":false,"merged":[[16,1,16,10],[6,1,6,10],[71,1,71,10],[75,1,77,10],[83,1,84,10],[85,1,85,10],[88,1,88,10],[90,1,92,10],[94,1,94,10],[96,1,96,2],[96,3,96,4],[96,5,96,10],[61,6,61,7],[61,9,61,10],[69,2,69,3],[69,4,69,5],[69,6,69,7],[69,9,69,10],[67,2,67,3],[67,4,67,5],[67,6,67,7],[67,9,67,10],[68,2,68,3],[68,4,68,5],[68,6,68,7],[68,9,68,10],[97,1,97,2],[97,3,97,4],[97,5,97,10],[98,1,98,2],[98,3,98,4],[98,5,98,10],[99,1,99,3],[99,9,99,10],[24,9,24,10],[46,2,46,5],[46,7,46,10],[36,2,36,10],[38,8,38,10],[40,8,40,10],[42,1,42,4],[43,2,43,10],[29,2,29,10],[9,1,9,10],[11,1,11,10],[1,6,1,10],[18,11,20,11],[20,2,20,10],[21,0,40,0],[21,2,21,4],[21,6,21,10],[21,11,40,11],[38,2,38,4],[40,2,40,4],[28,2,28,10],[31,2,31,3],[31,7,31,8],[26,2,26,6],[34,2,34,10],[33,2,33,10],[18,1,18,10],[10,1,10,10],[26,9,26,10],[22,2,22,7],[23,9,23,10],[24,2,24,3],[24,5,24,6],[50,2,50,10],[54,1,54,10],[60,2,60,3],[60,4,60,5],[55,9,55,10],[57,9,57,10],[59,2,59,3],[59,4,59,5],[59,6,59,7],[59,9,59,10],[66,2,66,3],[66,4,66,5],[66,6,66,7],[66,9,66,10],[62,2,62,3],[62,4,62,5],[62,6,62,7],[62,9,62,10],[60,6,60,7],[60,9,60,10],[61,2,61,3],[61,4,61,5],[115,1,115,10],[100,1,100,10],[102,1,105,10],[109,2,109,3],[109,6,109,8],[113,1,113,2],[135,2,135,9],[117,1,119,10],[123,1,125,10],[127,1,127,10],[129,1,131,10],[132,1,132,10],[136,2,136,9],[143,9,143,10],[144,2,144,3],[144,9,144,10],[141,2,141,9],[137,2,137,9],[138,2,138,9],[139,2,139,9],[140,2,140,9]]}
[]
[null,null,null,null,null,null,"Генеральному директору \nАО \"Теплосеть\"\n"]
[]
[]
[]
[]
[null,"ЗАЯВКА НА ПОДКЛЮЧЕНИЕ К СИСТЕМЕ ТЕПЛОСНАБЖЕНИЯ АО \"ТЕПЛОСЕТЬ\""]
[null,null,null,null,"(для физического лица)"]
[]
[null,"Прошу Вас заключить договор о подключении к системе теплоснабжения АО \"Теплосеть\" объекта капитального строительства: "]
[]
[null,"(наименование объекта)"]
[null,"в связи с: ",null,null,null,null,null,null,null,null,null,"Необходимо выбрать нужный вариант"]
[null,"    необходимостью подключения нового объекта"]
[null,"    увеличением тепловой нагрузки или тепловой мощности подключаемого объекта"]
[null,"    реконструкцией или модернизацией объекта без увеличения тепловой нагрузки или тепловой мощности"]
[null,"    необходимостью подключения к иной системе ранее подключенных потребителей по причине вывода из эксплуатации источника тепловой энергии, тепловых сетей согласно схеме теплоснабжения или в порядке, установленном законодательством РФ"]
[]
[null,"1. Сведения о заявителе:"]
[]
[null,"Ф.И.О. физического лица"]
[]
[null,"Наименование документа, \nудостоверяющего личность"]
[]
[null,"Серия",null,null,"№",null,null,null,"Код подразделения"]
[]
[null,"Выдан",null,null,null,null,null,null,"Дата выдачи"]
[]
[null,"Адрес регистрации по месту жительства"]
[null,null,"Индекс, город, улица, дом, строение, корпус, владение"]
[]
[null,"ИНН"]
[]
[null,"Ф.И.О. представителя (уполномоченного лица)"]
[null,null,"*В данной графе указываются лица, имеющие право действовать от имени физического лица на основании доверенности, № доверенности"]
[]
[null,"Контактное лицо (Ф.И.О.)"]
[]
[null,"Основной телефон ",null,null,null,null,null,"Дополнительный телефон"]
[]
[null,"Основной e-mail",null,null,null,null,null,"Дополнительный e-mail"]
[]
[null,"Уведомить меня по основным контактным данным ",null,null,null,"Да",null,"Нет",null,null,null,"Необходимо выбрать нужный вариант"]
[null,null,"*** В случае если Заявитель будет недоступен по вышеуказанному контакту, Технические условия подключения будут отправлены почтой по  адресу, указанному в Разделе 1 настоящего Запроса"]
[null,"2. Местонахождение подключаемого объекта:"]
[]
[null,"Город",null,null,null,null,"Район"]
[]
[]
[]
[null,"Улица"]
[]
[null,"Дом"]
[]
[null,"3. Технические параметры подключаемого объекта:"]
[null,"3.1 Таблица тепловых нагрузок по видам потребления ",null,null,null,null,null,null,null,null,null,"Таблица заполняется одна из двух представленных"]
[null,"(Заполняется одна из двух таблиц)"]
[null,"Для неподключенных строящихся (построенных) объектов:",null,null,null,null,null,null,{"$f":"J61","v":0},"поле считается автоматически"]
[]
[null,"Наименование","Отопление",null,"Вентиляция",null,"ГВС ",null,"Прочее","Всего "]
[null,"Тепловая нагрузка, Гкал / час",0,null,0,null,0,null,0,{"$f":"C61+E61+G61+I61","v":0},null,"Вносить данные в поля"]
[]
[]
[]
[null,"Для реконструируемых объектов:"]
[]
[null,"Наименование","Отопление",null,"Вентиляция",null,"ГВС ",null,"Прочее","Всего "]
[null,"Тепловая нагрузка существующая, Гкал / час",0,null,0,null,0,null,0,{"$f":"C68+E68+G68+I68","v":0}]
[null,"Тепловая нагрузка после реконструкции, Гкал / час",0,null,0,null,0,null,0,{"$f":"C69+E69+G69+I69","v":0}]
[null,"Тепловая нагрузка дополнительная, Гкал / час",{"$f":"C69-C68","v":0},null,{"$f":"E69-E68","v":0},null,{"$f":"G69-G68","v":0},null,{"$f":"I69-I68","v":0},0,null,"Считается как разница между Тепловая нагрузка после реконструкции и Тепловая нагрузка существующая"]
[]
[null,"ВАЖНО: Если в рамках заявки на подключение планируется заключение договора о подключении нескольких объектов капитального строительства, то заявка должна содержать в себе таблицы нагрузок по каждому объекту."]
[]
[null,"3.2 Режимы теплопотребления для подключаемого объекта:"]
[]
[null,null,null,null,null,null,null,null,null,null,null,"Необходимо выбрать из выпадающего списка"]
[]
[]
[null,"Если нужного варианта режима в списке нет, укажите собственный вариант"]
[]
[]
[null,"3.3 Расположение узла учета тепловой энергии "]
[]
[]
[]
[null,"Я хочу вместе с проектом Договора о подключении получить Технические условия на организацию учета тепловой энергии, теплоносителя:"]
[null,null,null,null,"Да",null,"Нет"]
[]
[null,"3.4 Требования к надежности теплоснабжения подключаемого объекта (допустимые перерывы в подаче теплоносителей  по продолжительности, периодам годам и др.)"]
[]
[null,null,null,null,null,null,null,null,null,null,null,"Необходимо выбрать из выпадающего списка"]
[]
[]
[]
[null,"3.5 Наличие и возможность использования собственных источников тепловой энергии (с указанием их мощностей и режимов работы)"]
[]
[null,"Наименование источника тепловой энергии",null,"Тепловая мощность,\nГкал / час",null,"Режим работы"]
[]
[]
[]
[null,"4. Правовые основания пользования подключаемым объектом или земельным участком, на котором расположен подключаемый объект:"]
[]
[]
[]
[null,null,null,null,null,null,null,null,null,null,null,"Обязательно к заполнению!"]
[]
[]
[null,"5. Технические условия (если ранее выдавались):"]
[]
[null,"от",null,null,null,"№"]
[]
[null,"6. Планируемый срок ввода объекта в эксплуатацию:"]
[]
[null,null,null,null,null,null,null,null,null,null,null,"Обязательно к заполнению!"]
[]
[null,"7. Информация о границах земельного участка, на котором планируется осуществить строительство / реконструкцию / модернизацию подключаемого объекта (содержится в ГПЗУ):"]
[]
[]
[null,null,null,null,null,null,null,null,null,null,null,"Обязательно к заполнению!"]
[]
[]
[null,"8. Информация о виде разрешенного используемого земельного участка (содержится в ГПЗУ):"]
[]
[]
[null,null,null,null,null,null,null,null,null,null,null,"Обязательно к заполнению!"]
[]
[]
[null,"9. Информация о предельных параметрах разрешенного строительства / реконструкции / модернизации подключаемого объекта (содержится в ГПЗУ):"]
[]
[]
[]
[]
[null,"Я, действуя своей волей и в своем интересе, в соответствии со ст. 9 Федерального закона от 27 июля 2006 г. № 152-ФЗ «О персональных данных» даю согласие на обработку моих персональных данных, в целях осуществления договорных отношений в рамках законодательства РФ в сфере теплоснабжения.",null,null,null,null,null,null,null,null,null,"Обязательно к заполнению!"]
[null,null,null,null,"Да",null,"Нет"]
[]
[null,null,"Перечень необходимых документов для заключения Договора о подключении к системе теплоснабжения АО \"Теплосеть\""]
[null,1,"Копия паспорта"]
[null,2,"Доверенность представителя контрагента на право подписания запроса (в случае подписания запроса лицом, действующим на основании доверенности)."]
[null,3,"Копии правоустанавливающих документов, подтверждающих право собственности или иное законное право заявителя на подключаемый объект или земельный участок, права на которые не зарегистрированы в Едином государственном реестре прав на недвижимое имущество и сделок с ним (в случае если такие права зарегистрированы в указанном реестре, представляются копии свидетельств о государственной регистрации прав на указанный подключаемый объект или земельный участок)."]
[null,4,"Ситуационный план расположения подключаемого объекта с привязкой к территории населенного пункта или элементам территориального деления в схеме теплоснабжения."]
[null,5,"Топографическая карта земельного участка в масштабе 1:500 (для квартальной застройки 1:2000) в электронном виде в формате PDF с указанием всех наземных и подземных коммуникаций и сооружений (не прилагается в случае, если заявителем является физическое лицо, осуществляющее создание (реконструкцию) объекта индивидуального жилищного строительства)."]
[null,6,"Правовые основания пользования заявителем подключаемым объектом и земельным участком, на котором планируется создание подключаемого объект."]
[]
[null,"Заявитель"]
[null,null,"ФИО",null,null,null,"Подпись",null,null,"Дата"]
[]
[null,"М.П."]

{"sheet":"Списки","index":4,"n_rows":73,"n_cols":3,"rows_kept":73,"cut":false,"hidden":true,"merged":[]}
[]
[null,"Схема подключения"]
[]
[null,"Зависимая"]
[null,"Независимая"]
[]
[null,"Округ"]
[]
[null,"ЦАО"]
[null,"САО"]
[null,"СВАО"]
[null,"ВАО"]
[null,"ЮВАО"]
[null,"ЮАО"]
[null,"ЮЗАО"]
[null,"ЗАО"]
[null,"СЗАО"]
[null,"Новомосковский АО"]
[null,"Троицкий АО"]
[null,"Зеленоградский АО"]
[]
[null,"Назначение объекта"]
[]
["№","Категория","Комментарий"]
[null,null,"-"]
[1,"Жилые дома","Жилые дома"]
[2,"Общественные и административно-бытовые помещения","Гостиницы, общежития, пансионаты, д/о, мотели"]
[3,"ДОУ","Детсады, ясли"]
[4,"Объекты спортивного назначения","Стадионы, ФОК, бассейны, спортзалы, спортшколы"]
[5,"Здравоохранение","Больницы, родильные дома, поликлиники, амбулатории, госпитали, морги"]
[6,"Образование","Школы, интернаты, дом ребенка, ПТУ, училища, Вузы, амбулатории"]
[7,"Административно-офисные помещения","МФК, офисы, деловые центры, типографии, почта"]
[8,"Социально-бытовые объекты","Прачечные, химчистки, душевые, бани,парикмахерские, общественные туалеты"]
[9,"Объекты торгового назначения","Магазин, торговые центры, торговые залы, аптеки, вещевой рынок, ларьки, торговые палатки"]
[10,"Досугово-развлекательные учреждения","Дом культуры, интернет-кафе, дискотеки, клубы"]
[11,"Культурные объекты","Театры, кинотеатры, музеи, постоянно действующие выставочные комплексы (центры)"]
[12,"Предприятия общественного питания","Столовые, кафе, рестораны, пиццерии, хлебопекарня"]
[13,"Объекты производственного назначения","Заводы, цеха, станции, тепловые пункты, депо, гаражи,ремонтно-механические мастерские, склады, АЗС,СТО"]
[14,"Объекты городской инфраструктуры","Вокзалы, парки, оранжереи, теплицы, сельхоз.рынки"]
[15,"Транспортная инфраструктура","Дороги, эстакады, мосты, тоннели, путепроводы, жел.дор.пути"]
[16,"Религиозные сооружения","Храм, церковь, синагога, мечеть, монастырь, часовня, кирха"]
[17,"Объекты защиты населения","Полиция, мчс, военные, ГИБДД, вневедомственная охрана, ЧОПы, военная полиция"]
[18,"Объекты складского назначения","Склады, навесы, ангары, сараи"]
[19,"Нежилые помещения","Объекты заявлены как нежилые помещение без уточнения дальнейшего назначения"]
[20,"Комплексная застройка","Большая застройка, куда попадают  объекты из разных категорий"]
[21,"Временные объекты","бытовки, строительные городки, объекты механизации"]
[22,"Объекты незавершенного строительства","незавершенные объекты для проведения отделочных и пуско-наладочных работ"]
[23,"Прочее","Все, что не попало в категории выше"]
[]
[null,"Отделения сбыта"]
[]
[null,"Отделение сбыта №1 - г. Москва, ул. Складочная, д. 1А, стр. 1"]
[null,"Отделение сбыта №2 - г. Москва, ул. Бибиревская, д. 8 кор. 1"]
[null,"Отделение сбыта №3 - г. Москва, ул. Шарикоподшипниковская, д.1"]
[null,"Отделение сбыта №4 - г.Москва, пр. Андропова, д. 36 к. 2"]
[null,"Отделение сбыта №5 - г.Москва, ул.Героев Панфиловцев, д.10, к. 1"]
[null,"Отделение сбыта №6 - г.Зеленоград, корп. 1111А"]
[null,"Отделение сбыта №7 - г.Московский, 3 мкр., д.2а"]
[]
[]
[null,"Режим теплопотрбления"]
[]
[null,"непрерывный"]
[null,"односменный"]
[null,"двухсменный"]
[null,"сезонный"]
[]
[]
[null,"Требования к надежности"]
[]
[null,"1 категория - потребители, не допускающие перерывов в подаче расчетного количества теплоты и снижения температуры воздуха в помещениях ниже расчетных"]
[null,"2 категория - потребители, допускающие снижение температуры в отапливаемых помещениях на период ликвидации аварии, но не более 54 ч: \n-        жилых и общественных зданий до 12 °С; \n-        промышленных зданий до 8 °С  "]
[null,"3 категория - остальные потребители"]